Cogmind - Beta 15 @@@ ROGUE MODE // 2025.08.10 @ 01:19:44 Player: puppuppit Result: Destroyed by S-10 Pest with Light Assault Rifle Performance ------------- Evolutions (0) 0 Regions Visited (1) 200 Robots Destroyed (38) 190 Value Destroyed (708) 708 Prototype IDs (0) 0 Alien Tech Used (0) 0 Bonus (0) 0 TOTAL SCORE: 1098 Bonus ------- None Cogmind --------- Core Integrity 0/250 Matter 292/300 Energy 100/100 System Corruption 1% Temperature Cool (0) Movement Treading (160) Location -10/Materials Parts ------- > --- POWER (1) -------- Subdweller Power Source > --- PROPULSION (2) --- Light Treads Light Treads > --- UTILITY (2) ------ Medium Storage Unit > --- WEAPON (2) ------- Light Assault Rifle Light Assault Rifle > --- INVENTORY (10) --- Light Treads Subdweller Monowheel High-capacity Matter Pod (200) High-capacity Matter Pod (200) Subdweller Laser Subdweller Beam Cannon Light Assault Rifle Subdweller Machine Gun Peak State ------------ > --- POWER ------------ Subdweller Power Source > --- PROPULSION ------- Light Treads Light Treads > --- UTILITY ---------- Medium Storage Unit Hacking Suite > --- WEAPON ----------- Light Assault Rifle Subdweller Machine Gun > --- INVENTORY -------- Light Treads Subdweller Monowheel High-capacity Matter Pod High-capacity Matter Pod Propulsion Shielding Subdweller Laser Subdweller Beam Cannon Light Assault Rifle Light Assault Rifle [Rating: 12] Favorites ----------- Power Ion Engine Engine Ion Engine Propulsion Light Treads Treads Light Treads Utility Medium Storage Unit Device Improved Terrain Scanner Storage Medium Storage Unit Processor Targeting Computer Hackware Hacking Suite Protection Propulsion Shielding Weapon Light Assault Rifle Ballistic Gun Light Assault Rifle Build | -11 -10 ------- Run | Yrd Mat Slots Evolved . | . . Power . | . . Propulsion . | . . Utility . | . . Weapon . | . . Parts Attached 16 | 7 9 Power 2 | 1 1 Engine 2 | 1 1 Core . | . . Reactor . | . . Propulsion 4 | 2 2 Treads 4 | 2 2 Leg . | . . Wheel . | . . Hover . | . . Flight . | . . Utility 6 | 2 4 Device 1 | 1 . Storage 2 | 1 1 Processor 1 | . 1 Hackware 1 | . 1 Protection 1 | . 1 Artifact . | . . Weapon 4 | 2 2 Energy Gun . | . . Energy Cannon . | . . Ballistic Gun 4 | 2 2 Ballistic Cannon . | . . Launcher . | . . Special Weapon . | . . Impact Weapon . | . . Slashing Weapon . | . . Piercing Weapon . | . . Special Melee Weapon . | . . Unidentified Prototypes . | . . Parts Lost 3 | . 3 Power . | . . Propulsion 1 | . 1 Utility 1 | . 1 Weapon 1 | . 1 Highest Loss Streak 2 | . 2 To Critical Strikes . | . . Average Backups 5 | . 5 Power . | . . Propulsion 1 | . 1 Utility 2 | . 2 Weapon 1 | . 1 Tool/Special . | . . Unused Backups 9 | . 9 Power . | . . Propulsion 2 | . 2 Utility 4 | . 4 Weapon 3 | . 3 Tool/Special . | . . Average Slot Usage (%) 99 | . 99 Engine 14 | . 14 Treads 28 | . 28 Device 6 | . 6 Storage 14 | . 14 Processor 2 | . 2 Protection 3 | . 3 Ballistic Gun 28 | . 28 Peak Build Rating 12 | 9 12 Average Rating 8 | 6 9 On Entrance 4 | . 9 Naked Turns . | . . Heaviest Build 21 | 14 21 Greatest Support 40 | 40 40 Greatest Overweight (x) . | . . Average Overweight (x) . | . . Largest Inventory Capacity 10 | 8 10 Average Capacity 9 | 7 9 Most Carried 10 | 2 10 Average Carried 5 | . 5 Final Capacity 10 | 8 10 Final Carried 8 | 2 8 Class Distribution -------------------- 95% | Mutant 4% | Scavenger-Mutant Dominant Class ---------------- Mutant | -10/Materials Resources | -11 -10 ----------- Run | Yrd Mat Matter Collected 1325 | 240 1085 Remotely . | . . Salvage Created 1312 | 175 1137 Parts 67 | 14 53 Haulers Intercepted 2 | . 2 Recyclers Shooed 4 | . 4 Parts Field Recycled . | . . Retrieved Matter . | . . Parts Self-Destructed . | . . Prevented . | . . Kills | -11 -10 ------- Run | Yrd Mat Combat Hostiles Destroyed 19 | . 19 Guns 19 | . 19 Classes Destroyed 10 | 3 7 Worker 2 | 2 . Builder 2 | . 2 Tunneler 4 | 4 . Hauler 2 | . 2 Recycler 6 | 1 5 Operator 1 | . 1 Watcher 2 | . 2 Swarmer 5 | . 5 Grunt 11 | . 11 Subdweller 3 | . 3 Best Kill Streak 6 | 4 6 Combat Bots Only 5 | . 5 Max Kills in Single Turn 1 | 1 1 Gunslinging . | . . Exploded . | . . Melee . | . . Uniques/NPCs Destroyed . | . . Combat | -11 -10 -------- Run | Yrd Mat Hostile Shots Fired 134 | . 134 Missed 41 | . 41 Hits 93 | . 93 Projectile 93 | . 93 Critical Strikes 1 | . 1 Damage Taken 1158 | . 1158 Core 250 | . 250 Absorbed by Shields . | . . Redirected to Shielding 50 | . 50 Core Remaining (%) 100 | 100 . Volleys Fired 150 | 20 130 Largest 2 | 2 2 Hottest 50 | 40 50 Shots Fired 299 | 40 259 Gun 299 | 40 259 Cannon . | . . Launcher . | . . Special . | . . Kinetic 299 | 40 259 Thermal . | . . Explosive . | . . Electromagnetic . | . . Robot Hit Streak 32 | 5 32 Robot Miss Streak 6 | 2 6 Penetration Max . | . . Secondary Targets 4 | . 4 Max Gunslinging Chain 1 | . 1 Shots Hit Robots 199 | 26 173 Core Hits 70 | 9 61 Critical Kills 1 | . 1 Critical Parts Destroyed . | . . Critical Strikes 1 | . 1 Destroy 1 | . 1 Melee Attacks . | . . Impact . | . . Slashing . | . . Piercing . | . . Sneak Attacks . | . . Combat Hostiles . | . . Follow-up Attacks . | . . Damage Inflicted 2279 | 264 2015 Guns 2276 | 264 2012 Cannons . | . . Explosions . | . . Melee . | . . Ramming 3 | . 3 Kinetic 2276 | 264 2012 Thermal . | . . Explosive . | . . Electromagnetic . | . . Impact . | . . Slashing . | . . Piercing . | . . Highest Corruption 1 | . 1 Average Corruption 1 | . 1 Corruption Purged . | . . Corruption Blocked . | . . Effects 5 | . 5 Matter Fused 2 | . 2 Heat Flow Errors 1 | . 1 Parts Rejected 1 | . 1 Data Loss (minor) 1 | . 1 Overload Shots . | . . Overflow Damage . | . . Projectiles . | . . Explosions . | . . Melee . | . . Knockbacks . | . . Impact . | . . Kinetic . | . . Secondary . | . . Self-Inflicted Damage . | . . Shots . | . . Rammed 2 | . 2 Targets Rammed 2 | . 2 Kicked . | . . Crushed . | . . Highest Temperature 276 | . 276 Average Temperature 30 | . 30 Received Heat Transfer 393 | . 393 Siege Activations . | . . Martial Activations . | . . Shielding Activations . | . . Robots Disrupted . | . . Combat Hostiles . | . . Robots Corrupted . | . . Combat Hostiles . | . . Parts Fried . | . . Impact Corruptions . | . . Robots Melted . | . . Combat Hostiles . | . . Parts Melted 1 | . 1 Heat Transferred . | . . Parts Sabotaged . | . . Parts Stolen . | . . Parts Stripped . | . . Power Chain Reactions . | . . Alert | -11 -10 ------- Run | Yrd Mat Maximum Alert Level . | . . Low Security (%) 100 | 100 100 Level 1 . | . . Level 2 . | . . Level 3 . | . . Level 4 . | . . Level 5 . | . . High Security . | . . Max Security . | . . Peak Influence 145 | 15 145 Initial 6 | . 6 Average 45 | 3 49 Influence Increases 559 | 35 524 Destroy 0b10 Robot/C 320 | . 320 Destroy 0b10 Robot/NC 95 | 35 60 Destroy Leader 78 | . 78 Successful Hack 17 | . 17 Disable Machine 15 | . 15 Destroy Structure 4 | . 4 Lose Combat Pursuer 30 | . 30 Influence Decreases 446 | 25 421 Entered New Map 4 | . 4 Time Decay 432 | 25 407 Lost Part 10 | . 10 Squads Dispatched 3 | . 3 Investigation 1 | . 1 Extermination . | . . Reinforcement 2 | . 2 Assault . | . . Garrison . | . . Intercept . | . . Searches Triggered . | . . Construction Impeded . | . . Haulers Reinforced . | . . Active Scanning Responses . | . . Cargo Convoy Interrupts . | . . Stealth | -11 -10 --------- Run | Yrd Mat Distress Signals 3 | . 3 Communications Jammed . | . . Distress Signals . | . . Times Spotted 37 | . 37 Peak Tracking Total 4 | . 4 Tactical Retreats 2 | . 2 Traps | -11 -10 ------- Run | Yrd Mat Traps Triggered 2 | . 2 Indirectly . | . . Trap Hack Attempts . | . . Triggered . | . . Disarmed . | . . Reprogrammed . | . . Reused . | . . Traps Extracted . | . . Installed . | . . Triggered . | . . Machines | -11 -10 ---------- Run | Yrd Mat Machines Disabled 1 | . 1 Max in Single Turn 1 | . 1 Machines Repaired . | . . Machines Dismantled . | . . Machines Sabotaged . | . . Overloaded Fab Kills . | . . Hacking | -11 -10 --------- Run | Yrd Mat Machines Accessed 6 | . 6 Terminals 5 | . 5 Fabricators . | . . Repair Stations . | . . Recycling Units 1 | . 1 Scanalyzers . | . . Garrison Access . | . . Total Hacks 17 | . 17 Successful 5 | . 5 Failed 12 | . 12 Catastrophic . | . . Database Lockouts . | . . Manual 17 | . 17 Terminals 15 | . 15 Fabricators . | . . Repair Stations . | . . Recycling Units 2 | . 2 Scanalyzers . | . . Garrison Access . | . . Terminal Hacks 1 | . 1 Terminal Index 1 | . 1 Fabricator Hacks . | . . Repair Station Hacks . | . . Recycling Unit Hacks . | . . Scanalyzer . | . . Garrison Access Hacks . | . . Unauthorized Hacks 4 | . 4 Terminals 3 | . 3 Botnet 1 | . 1 Skim 2 | . 2 Fabricators . | . . Repair Stations . | . . Recycling Units 1 | . 1 Mask 1 | . 1 Scanalyzers . | . . Garrison Access . | . . Data Cores Recovered . | . . Used . | . . Hacking Detections 6 | . 6 Full Trace Events 1 | . 1 Feedback Events . | . . Feedback Blocked . | . . Robot Schematics Acquired . | . . Robots Built . | . . Authchips . | . . Time . | . . Total Robot Build Rating . | . . Part Schematics Acquired . | . . Parts Built . | . . Authchips . | . . Time . | . . Total Part Build Rating . | . . Parts Repaired . | . . Time . | . . Parts Recycled . | . . Recycled Matter . | . . Retrieved Matter . | . . Retrieved Components . | . . Parts Scanalyzed . | . . Part Schematics Acquired . | . . Parts Damaged . | . . Bothacking | -11 -10 ------------ Run | Yrd Mat Used RIF Installer . | . . Robots Hacked . | . . Non-combat . | . . Combat . | . . Robot Hacks Applied . | . . Relay Couplers Released . | . . Fabnet Peak Effective % . | . . Robots Rewired . | . . Allies Hacked . | . . Hacks Repelled . | . . Allies | -11 -10 -------- Run | Yrd Mat Total Allies . | . . Largest Group . | . . Highest-Rated Group . | . . Highest-Rated Ally . | . . Total Orders . | . . Ally Attacks . | . . Total Damage . | . . Kills . | . . Allies Corrupted . | . . Allies Melted . | . . Intel | -11 -10 ------- Run | Yrd Mat Active Infowar (turns) 730 | 50 680 Terrain 730 | 50 680 Robot Analysis Total . | . . Derelict Logs Recovered . | . . Drone Launches . | . . Drone Recoveries . | . . Exploration | -11 -10 ------------- Run | Yrd Mat Turns Passed 1541 | 139 1402 Spaces Moved 668 | 48 620 Core 5 | 5 . Treads 663 | 43 620 Legs . | . . Wheels . | . . Hover . | . . Flight . | . . Fastest Speed 50 | 50 160 Average Speed 159 | 148 160 Slowest Speed 160 | 160 160 Overloaded Moves . | . . Propulsion Burnouts . | . . Robots Hopped . | . . Potential Cave-ins . | . . Cave-ins Triggered . | . . Exploration Rate (%) 43 | 6 80 Regions Visited 1 Branch Regions . Pre-discovered Areas . | . . Known Exits Taken . | . . Unknown Exits Taken 1 | 1 . Scrap Searched . | . . Spaces Dug . | . . Terrain Destroyed 4 | . 4 Melee . | . . Projectile 4 | . 4 AOE . | . . Terrain Rammed . | . . Walls Destroyed . | . . Machines Disabled . | . . Actions | -11 -10 --------- Run | Yrd Mat Total 872 | 76 796 Wait 13 | . 13 Move 667 | 47 620 Hop . | . . Pick Up 14 | 2 12 Fast Attach 9 | 7 2 Attach 2 | . 2 Detach 1 | . 1 Swap 8 | . 8 Drop 6 | . 6 Fire 150 | 20 130 Melee . | . . Ram . | . . Kick . | . . Crush 2 | . 2 Escape Stasis . | . . Rewire . | . . Trap . | . . Miscellaneous . | . . Route ------- -11/Scrapyard -10/Materials (discovered 4 exits: [*Mat x3] / [*Min]) History --------- Turn | Location | Event 10 | -11/Scrapyard | Discovered new exit (range 16) 140 | -11/Scrapyard | Entered Materials 239 | -10/Materials | Discovered new exit (range 16) 311 | -10/Materials | Build established: Mutant 440 | -10/Materials | Discovered new exit (range 9) 870 | -10/Materials | Discovered new exit (range 13) 940 | -10/Materials | Derelicts attacked the area 1248 | -10/Materials | Core integrity fell below 50% 1304 | -10/Materials | Discovered new exit (range 5) 1428 | -10/Materials | Core integrity fell below 20% 1542 | -10/Materials | Destroyed by S-10 Pest with Light Assault Rifle Last Messages --------------- Please expand to 3 more systems! 01394_ Connecting with Terminal... 01394_ ALERT: Suspicious activity at Terminal M004. Dispatching Investigation squad. 01419_ Discarded Hacking Suite. 01426_ G-34 Mercenary destroyed. 01446_ Sub. Machine Gun shoots sparks and powers down. 01450_ G-34 Mercenary destroyed. 01450_ Switching to secondary target: G-34 Mercenary. 01455_ G-34 Mercenary destroyed. 01458_ Acquired 31 matter. 01461_ Acquired 27 matter. 01485_ Triggered Explosive Trap. 01485_ An explosion rips through the floor. 01485_ Propulsion Shielding destroyed. 01533_ S-10 Pest destroyed. 01535_ Sub. Power Source shoots sparks and powers down. 01541_ S-10 Pest destroyed. Map ----- +----------------------------------------------------+ | ?????????????????????????? | | ?????????????????????????? | | ????????????????????????????????#### | | ???????????????????????????????#???? | | ???????????????????????????????????? | | ????????????????????????????????#??? | | ???????????????????????#???????????? | | ????????????????????????????????#### | | ????????????? ?????????????#??# | | ????????????# ????????????????#""" | | ????????????# ?????????????#?##""" | | ????????????# ????????????????#""" | | ????????????# ????????????????# | | ????????????# #???????????????# " | | ????????????# #???????????????#### | | ????????????# #????????????#??#??? | | ????????????# #?????????????##???# | | ????????????# #???????????????#?#? | | ????????????# #???????###########? | | ????????????# +???????# #? | | ??########### #???????# ## | | ??# T # #?####### """ !#? | | ??# # ### # """ #? | | ??# """ # # """ "" #? | | ??# """"" # =! + Y" #? | | ??# ] """""@# !! # "" ## | | ????? """""%+[ ##" # #? | | ????? """ s#= #### ############# | | ???? # #??# #???????????? | | ???########## #??# #?#???#????#? | | ????????# #??# #??#?#?###### | | ????????# < #??# #?????##]]!!/ | | ????????# % #??# #??????#]]!!/ | | ????????####+####?## ##?????# | | ?????????# #?# ####### | | ?????????# #?# ! = ! | | ?????????# #?# * & | | ########## #?# ! | | ? ## #?# ###########" | | ? ## #?#######??????#??## | | ?? """ # ##########????????????? | | ??""""" ##### !#??????#?????# | | ? """"" #####????????? | | ??""""" T T !!#??##????? | | ?? """ ##### !!#????????# | | ?? ## ########### !!#??????#?? | | ? ## # #??# !!#????#???? | | # ## + #??# ]]#????????? | | # ## # #??# ]]#????????? | | ########## # #??#####????????? | +----------------------------------------------------+ Best States ------------- Heat Dissipation 25 Energy Generation 15 Energy Capacity 250 Matter Stores 300 Matter Capacity 300 Sight Range 16 Terrain Scan Range 16 Terrain Scan Density 10 Propulsion Shielding 33 Evasion (%) 40 Targeting Accuracy 5 Recoil Reduction 2 Offensive Hacking 10 Item Schematics ----------------- None Robot Schematics ------------------ None Fabricated ------------ Nothing Repaired ---------- Nothing Alien Tech Used ----------------- None Achievements -------------- None Challenges ------------ None Game ------ Seed ReactionGrenadeTerminator Manual? 0 Play Time 00:10:22 Cumulative 486.7 hours Start 2025.08.10 @ 01:12:38 End 2025.08.10 @ 01:19:44 Sessions 1 Manual Loads 0 Difficulty Rogue Special Mode None Game No. 267 Rogue 267 Adventurer 0 Explorer 0 Win Type - Total 5 Types 3/0/1/1/0/0/0/0/0/0 Lore% 86 Gallery% 75 Achievement% 68 Wizard Run 0 Options --------- Layout 2 ASCII 0 Keyboard 1 Movement Vi Keybinds 0 Fullscreen 1 Font 16/Tamsyn Map View 55x47 Zoom Use 0% Tactical HUD 1 Map Filters NONE Filters NONE Steam 0 RUN: f204119f-02d4-40d0-9e61-a32292adc9cb